bitfinex/quotes_ETHUSD_20250213
["timestamp","ask_amount","ask_price","bid_price","bid_amount"]
[1739421179919,4.68024,2733.7,2733.6,0.01]
[1739421180292,5.23024,2733.7,2733.6,0.01]
[1739421180489,9.93808,2733.7,2733.6,0.278]
[1739421180887,9.93808,2733.7,2733.6,0.01]
[1739421181903,11.90328,2733.7,2733.6,0.01]
[1739421182148,14.98222402,2733.7,2733.6,0.01]
[1739421183735,11.98222402,2733.7,2733.6,0.01]
[1739421184256,9.98258,2733.7,2733.6,0.01]
[1739421185631,12.98258,2733.7,2733.6,0.01]
[1739421187667,0.0075,2733.0,2732.8,0.268]
[1739421187831,0.55,2732.9,2732.8,0.268]
[1739421188458,0.55,2732.9,2732.6,0.8634]
[1739421188734,0.0075,2732.5,2731.9,0.269]
[1739421189050,0.55,2732.2,2731.9,0.269]
[1739421189374,0.55,2732.2,2732.1,3.8116879]
[1739421190132,2.91024,2732.5,2732.3,3.65988]
[1739421190368,2.91024,2732.5,2732.4,3.65978]
[1739421190674,2.91024,2732.5,2732.4,4.73638]
[1739421191971,2.91024,2732.5,2732.4,8.00538]
[1739421192170,2.891197,2732.5,2732.4,8.00538]
[1739421192769,2.891197,2733.3,2733.1,3.65871]
[1739421192973,2.491197,2733.3,2733.1,1.0697]
[1739421193515,0.55,2733.2,2733.1,4.72852]
[1739421193909,0.55,2733.2,2733.1,1.0697]
[1739421194115,0.55,2733.2,2732.8,4.7289]
[1739421194515,0.55,2733.2,2732.9,3.65903]
[1739421194819,1.75,2733.5,2733.3,1.0697]
[1739421195016,1.75,2733.5,2733.4,0.269]
[1739421195531,2.3,2733.5,2733.4,0.269]
[1739421196140,2.3,2733.5,2733.4,3.92744]
[1739421196493,1.75,2733.5,2733.4,3.92744]
[1739421196695,2.491197,2733.7,2733.4,0.269]
[1739421197003,2.491197,2733.7,2733.6,3.65817]
[1739421197223,2.491197,2733.7,2733.5,7.31653]
[1739421197409,3.041197,2733.7,2733.6,3.65817]
[1739421197816,3.041197,2733.7,2733.5,7.31643]
[1739421198013,3.041197,2733.7,2733.5,3.65821]
[1739421198338,0.55,2733.6,2733.4,0.269]
[1739421198827,0.55,2733.6,2733.4,3.92744]
[1739421199329,0.55,2733.6,2733.5,3.65831]
[1739421199717,0.55,2733.6,2733.4,3.92743]
[1739421199897,0.55,2733.6,2733.4,0.269]
[1739421200098,0.55,2733.6,2733.3,4.72817]
[1739421200099,0.9541197,2733.6,2733.3,1.0697]
[1739421200431,0.9541197,2733.6,2733.4,0.269]
[1739421200627,0.0075,2733.3,2732.7,1.0498]
[1739421200926,0.55,2733.4,2733.2,0.269]
[1739421201125,1.45975144,2733.4,2733.2,3.9277]
[1739421201328,3.65838,2733.5,2733.2,0.269]
[1739421201546,0.5575,2733.4,2733.2,0.269]
[1739421201749,3.048697,2733.3,2733.2,0.269]
[1739421202403,6.707277,2733.3,2733.2,0.269]
[1739421202639,5.25552,2733.2,2733.0,0.27]
[1739421202839,1.5968,2733.2,2733.0,0.27]
[1739421203253,5.25553,2733.2,2733.0,0.27]
[1739421203414,1.5968,2733.2,2733.0,0.27]
[1739421203616,1.5968,2733.2,2732.7,4.70911]
[1739421203817,6.31670652,2733.2,2732.8,0.269]
[1739421204048,3.65886,2733.1,2732.8,0.269]
[1739421204257,0.5575,2733.0,2732.8,0.269]
[1739421204617,4.21651,2733.0,2732.5,3.65955]
[1739421204856,3.65938,2732.7,2732.3,1.1209]
[1739421205063,0.55,2732.6,2732.4,0.269]
[1739421205553,0.55,2732.6,2732.4,3.92867]
[1739421205956,0.55,2732.8,2732.5,3.65961]
[1739421206260,0.55,2732.8,2732.4,3.92867]
[1739421206419,0.55,2732.8,2732.4,0.269]
[1739421206624,0.55,2732.8,2732.4,3.92871]
[1739421206820,0.55,2732.8,2732.5,3.65955]
[1739421207334,0.55,2732.8,2732.4,3.92871]
[1739421208050,0.55,2732.8,2732.5,3.65965]
[1739421208819,0.55,2732.6,2732.2,3.65996]
[1739421209023,0.55,2732.4,2732.1,0.1516179]
[1739421209249,3.65995,2732.3,2732.1,0.4206179]
[1739421210038,0.55,2732.3,2732.1,0.4206179]
[1739421210640,0.55,2732.3,2732.1,4.0807879]
[1739421211042,0.55,2732.3,2732.2,3.66005]
[1739421211469,0.55,2732.3,2732.1,4.0807979]
[1739421211674,0.55,2732.3,2732.2,3.66005]
[1739421214177,0.55,2732.3,2732.1,4.0807979]
[1739421214373,0.55,2732.3,2732.1,4.0807279]
[1739421215377,0.55,2732.3,2732.2,3.66005]
[1739421215553,0.55,2732.3,2732.1,4.0807279]
[1739421215757,0.8541197,2732.3,2732.1,0.4206179]
[1739421215958,0.8541197,2732.3,2732.1,4.0807979]
[1739421216460,2.491197,2732.4,2732.2,3.66005]
[1739421216973,0.55,2732.3,2732.2,3.66005]
[1739421218773,0.55,2732.3,2732.1,5.1979879]
[1739421218963,0.55,2732.3,2732.1,4.0807879]
[1739421219973,0.55,2732.3,2732.1,4.0807179]
[1739421220782,0.55,2732.3,2732.1,7.7408379]
[1739421220978,0.55,2732.3,2732.1,4.0807179]
[1739421221179,0.55,2732.3,2732.1,0.4206179]
[1739421221680,0.55,2732.3,2732.1,4.0807279]
[1739421221854,0.55,2732.3,2732.2,3.66005]
[1739421223457,0.55,2732.3,2732.1,0.4206179]
[1739421224939,0.55,2732.3,2732.2,3.66005]
[1739421225151,0.55,2732.3,2732.1,4.0807279]
[1739421225357,0.55,2732.3,2732.1,0.4206179]
[1739421226602,4.71825,2732.2,2732.1,0.1516179]
[1739421226799,1.6157,2732.2,2732.1,0.1516179]
[1739421228070,4.106897,2732.2,2732.1,0.1516179]
[1739421228393,7.766947,2732.2,2732.1,0.1516179]
[1739421228604,9.31943834,2732.2,2732.1,0.1516179]
[1739421230861,9.32693834,2732.2,2732.1,0.1516179]
[1739421232813,10.67693834,2732.2,2732.1,0.1516179]
[1739421238021,10.70963834,2732.2,2732.1,0.1516179]
[1739421244821,7.04208834,2732.2,2732.1,0.1516179]
[1739421245153,9.149647,2732.2,2732.1,0.1516179]
[1739421249226,9.157147,2732.2,2732.1,0.1516179]
[1739421250539,12.157147,2732.2,2732.1,0.1516179]
[1739421251670,12.157147,2732.2,2732.1,7.9e-06]
[1739421252477,9.157147,2732.2,2732.1,7.9e-06]
[1739421252692,10.79992613,2732.2,2732.1,7.9e-06]
[1739421255960,13.79992613,2732.2,2732.1,7.9e-06]
[1739421256431,0.0075,2731.1,2731.0,1.1149]
[1739421256631,0.55,2731.0,2730.9,0.267]
[1739421256930,0.55,2731.0,2730.7,1.1149]
[1739421257099,0.55,2731.0,2730.7,1.3819]
[1739421257409,0.55,2731.0,2730.7,5.04396]
[1739421257996,0.55,2731.0,2730.7,5.04387]
[1739421258300,0.55,2731.0,2730.9,3.66179]
[1739421260013,0.55,2731.0,2730.7,1.1149]
[1739421260152,0.55,2731.0,2730.8,0.267]
[1739421260348,0.5575,2730.8,2730.4,1.0326]
[1739421260548,3.66209,2730.7,2730.4,1.2996]
[1739421261313,0.55,2730.5,2730.4,1.2996]
[1739421261516,4.2201,2730.3,2730.2,0.005]
[1739421261804,0.5575,2730.3,2730.2,0.005]
[1739421262211,4.2201,2730.3,2730.2,0.005]
[1739421262416,7.64803466,2730.3,2730.2,0.005]
[1739421262712,8.5405161,2730.3,2730.2,0.005]
[1739421262886,7.64803466,2730.3,2730.2,0.005]
[1739421263338,7.65553466,2730.3,2730.2,0.005]
[1739421263541,0.5575,2730.3,2730.2,0.005]
[1739421263735,0.55,2730.3,2730.2,0.005]
[1739421264123,0.55,2730.3,2730.2,3.66773]
[1739421264318,0.55,2730.3,2730.2,0.005]
[1739421266804,0.55,2730.3,2730.2,0.272]
[1739421267028,4.2126,2730.3,2730.2,0.272]
[1739421267228,5.007598,2730.3,2730.2,0.005]
[1739421267541,4.2201,2730.3,2730.2,0.005]
[1739421267741,7.64803466,2730.3,2730.2,0.005]
[1739421268062,9.00553466,2730.3,2730.2,0.005]
[1739421269273,16.02356632,2730.3,2730.2,0.005]
[1739421269441,20.99216895,2730.3,2730.2,1e-05]
[1739421270468,17.56423429,2730.3,2730.2,1e-05]
[1739421271110,20.99216895,2730.3,2730.2,1e-05]
[1739421272367,12.90783429,2730.3,2730.2,1e-05]
[1739421272529,7.27663166,2730.3,2730.2,1e-05]
[1739421274011,3.841197,2730.3,2730.2,1e-05]
[1739421274619,4.391197,2730.3,2730.2,1e-05]
[1739421275612,8.053797,2730.3,2730.2,1e-05]
[1739421275954,11.48173166,2730.3,2730.2,1e-05]
[1739421276556,12.99615483,2730.3,2730.2,1e-05]
[1739421276851,13.00365483,2730.3,2730.2,1e-05]
[1739421277036,14.04625483,2730.3,2730.2,1e-05]
[1739421277548,14.05375483,2730.3,2730.2,1e-05]
[1739421278356,9.34855483,2730.3,2730.2,1e-05]
[1739421279550,7.82663166,2730.3,2730.2,1e-05]
[1739421279951,3.841197,2730.3,2730.2,4.73234]
[1739421280154,3.42793466,2730.6,2730.2,4.73234]
[1739421280328,3.42793466,2730.6,2730.2,1.06961]
[1739421280533,0.55,2730.5,2730.2,1.06961]
[1739421280736,3.66241,2730.5,2730.2,1e-05]
[1739421280925,7.32484,2730.5,2730.2,1e-05]
[1739421281256,3.66247,2730.4,2730.2,1e-05]
[1739421281457,7.64803466,2730.3,2730.2,1e-05]
[1739421282852,0.5575,2730.3,2730.2,1e-05]
[1739421283151,0.0075,2730.3,2730.2,1e-05]
[1739421283355,3.6701,2730.3,2730.2,1e-05]
[1739421283553,1.85090445,2730.3,2730.2,1e-05]
[1739421283760,0.5575,2730.3,2730.2,1e-05]
[1739421285453,5.01235,2730.5,2730.2,1e-05]
[1739421285762,4.2201,2730.3,2730.2,1e-05]
[1739421286130,0.5575,2730.3,2730.2,1e-05]
[1739421286335,0.55,2730.3,2730.2,1e-05]
[1739421286560,0.55,2730.3,2730.2,3.66274]
[1739421287361,0.55,2730.3,2730.2,4.72254]
[1739421287687,0.55,2730.3,2730.2,1e-05]
[1739421287839,0.971235,2730.3,2730.2,0.26801]
[1739421288047,0.55,2730.3,2730.2,0.26801]
[1739421288773,4.2126,2730.3,2730.2,0.26801]
[1739421288978,0.55,2730.3,2730.2,0.26801]
[1739421290130,0.55,2730.3,2730.2,3.93074]
[1739421290724,0.55,2730.3,2730.2,0.26801]
[1739421294886,4.2126,2730.3,2730.2,0.26801]
[1739421295087,0.55,2730.3,2730.2,0.26801]
[1739421295584,4.2126,2730.3,2730.2,0.26801]
[1739421297484,0.55,2730.3,2730.2,0.26801]
[1739421297956,0.55,2730.3,2730.2,3.93074]
[1739421300080,0.55,2730.3,2730.2,0.26801]
[1739421300640,0.971246,2730.3,2730.2,1e-05]
[1739421300866,4.641346,2730.3,2730.2,1e-05]
[1739421301604,0.978746,2730.3,2730.2,1e-05]
[1739421301911,0.55,2730.3,2730.2,1e-05]
[1739421302773,4.2201,2730.3,2730.2,1e-05]
[1739421303873,0.5575,2730.3,2730.2,1e-05]
[1739421304612,0.55,2730.3,2730.2,1e-05]
[1739421305094,0.55,2730.3,2730.2,4.67634]
[1739421305294,1.35,2730.5,2730.4,3.66246]
[1739421306406,1.35,2730.5,2730.4,4.67286]
[1739421307407,0.5575,2731.0,2730.5,3.66223]
[1739421307607,0.55,2730.8,2730.6,3.66219]
[1739421308323,0.5575,2731.0,2730.7,3.66206]
[1739421308610,0.5575,2731.0,2730.6,3.66218]
[1739421308785,0.5575,2731.0,2730.7,3.66196]
[1739421309497,0.5575,2731.0,2730.8,3.66185]
[1739421309811,1.20030347,2731.0,2730.8,3.66185]
[1739421310112,1.35,2731.3,2730.8,1.0882]
[1739421310281,1.35,2731.3,2730.8,4.75008]
[1739421310488,2.365,2731.3,2730.8,1.0882]
[1739421310694,2.365,2731.3,2730.2,1e-05]
[1739421310695,3.66929,2731.0,2730.9,0.267]
[1739421310995,0.55,2730.9,2730.5,1.0882]
[1739421311201,0.55,2730.6,2730.3,1.0663]
[1739421311396,0.55,2730.6,2730.4,0.267]
[1739421311587,3.66208,2730.7,2730.3,1.0663]
[1739421311588,0.5575,2730.8,2730.5,0.267]
[1739421311919,0.526438,2730.7,2730.5,0.267]
[1739421312504,0.526438,2730.7,2730.5,3.92931]
[1739421312814,0.526438,2730.7,2730.6,3.66219]
[1739421312815,0.55,2730.7,2730.6,3.66219]
[1739421313413,0.55,2730.7,2730.6,3.92919]
[1739421313615,0.55,2730.7,2730.6,4.98359]
[1739421314511,0.55,2730.7,2730.6,1.3214]
[1739421314713,0.55,2730.7,2730.6,0.267]
[1739421314892,0.971179,2730.7,2730.6,0.267]
[1739421316413,0.55,2730.7,2730.6,0.267]
[1739421316617,0.55,2730.7,2730.6,3.92919]
[1739421316790,0.55,2730.7,2730.6,4.98359]
[1739421317312,0.55,2730.7,2730.6,0.267]
[1739421319238,0.55,2730.7,2730.6,3.92919]
[1739421320493,1.35,2731.0,2730.8,3.66191]
[1739421320938,0.55,2730.9,2730.8,3.66191]
[1739421321311,0.55,2730.9,2730.7,3.66204]
[1739421321539,0.55,2730.9,2730.6,4.99821]
[1739421323141,0.55,2730.9,2730.7,3.66206]
[1739421323639,3.66231,2730.6,2730.2,1e-05]
[1739421323827,0.55,2730.5,2730.3,0.267]
[1739421324150,1.35,2730.7,2730.3,3.92951]
[1739421324610,0.5575,2730.6,2730.3,0.267]
[1739421325424,1.0034,2730.5,2730.3,0.267]
[1739421325617,0.522312,2730.4,2730.3,0.267]
[1739421326334,1.0034,2730.5,2730.3,3.9295]
[1739421326541,4.21973,2730.6,2730.2,1e-05]
[1739421326744,4.21973,2730.6,2730.3,0.267]
[1739421327078,0.55,2730.6,2730.2,0.26701]
[1739421327236,0.0075,2730.5,2730.2,0.26701]
[1739421327536,1.595,2730.3,2730.2,1e-05]
[1739421327698,2.542747,2730.3,2730.2,1e-05]
[1739421329942,10.99078166,2730.3,2730.2,1e-05]
[1739421332361,3.67827,2729.8,2729.7,0.005]
[1739421332511,12.57290166,2729.8,2729.7,0.005]
[1739421332714,1.6405,2729.7,2727.4,0.57276011]
[1739421332917,0.0075,2728.7,2728.0,0.267]
[1739421333148,0.0075,2728.5,2728.1,3.93355]
[1739421333349,0.0075,2728.5,2728.1,0.268]
[1739421333567,0.55,2728.3,2728.1,0.268]
[1739421333857,0.63856886,2728.3,2728.0,7.33117]
[1739421334018,0.63856886,2728.3,2728.0,3.93358]
[1739421334213,0.63856886,2728.3,2728.0,3.93357]
[1739421334445,0.63856886,2728.3,2728.1,3.66555]
[1739421334815,0.63856886,2728.3,2728.2,3.66942]
[1739421335013,0.63856886,2728.3,2728.2,0.004]
[1739421335256,2.51406886,2728.3,2728.2,0.004]
[1739421335451,0.08856886,2728.3,2728.2,3.66942]
[1739421335810,1.35,2728.5,2728.4,3.66515]
[1739421336152,0.08827479,2728.5,2728.4,3.66515]
[1739421336518,0.08827479,2728.5,2728.4,4.66855]
[1739421336741,1.35,2729.1,2728.6,3.66482]
[1739421336950,1.35,2729.1,2728.8,3.66451]
[1739421337120,0.0818703,2729.0,2728.9,0.27]
[1739421337334,0.6318703,2729.0,2728.9,0.27]
[1739421337515,0.55,2729.0,2728.9,0.27]
[1739421337716,0.63131019,2729.0,2728.9,0.27]
[1739421339380,1.06085021,2729.0,2728.9,0.27]
[1739421339732,0.0075,2728.8,2728.7,0.27]
[1739421340075,0.5575,2728.5,2728.4,0.27]
[1739421340375,5.66110808,2728.5,2728.4,0.27]
[1739421340607,1.569,2728.3,2728.2,0.004]
[1739421340739,8.66221466,2728.3,2728.2,0.004]
[1739421341055,8.74319449,2728.3,2728.2,0.004]
[1739421341627,9.64837931,2728.3,2728.2,0.004]
[1739421341983,5.98309931,2728.3,2728.2,0.004]
[1739421342274,0.63847983,2728.3,2728.2,0.004]
[1739421342483,0.08097983,2728.3,2728.2,3.66942]
[1739421342634,0.08097983,2728.3,2728.2,4.68422]
[1739421342973,0.08097983,2728.3,2728.2,7.68422]
[1739421343471,1.35,2729.1,2729.0,3.66434]
[1739421343771,4.34061948,2729.5,2729.0,3.66434]
[1739421343772,0.0075,2729.2,2729.0,0.271]
[1739421343973,0.07818138,2729.1,2729.0,3.93534]
[1739421344572,1.3575,2729.3,2729.2,3.66407]
[1739421344937,1.92731195,2729.3,2729.0,3.93534]
[1739421345162,1.92731195,2729.3,2729.0,0.271]
[1739421345439,1.92731195,2729.3,2729.1,0.271]
[1739421345440,0.55,2729.2,2729.1,0.271]
[1739421347337,0.55,2729.2,2728.7,3.66462]
[1739421347538,0.7977312,2729.2,2728.8,0.271]
[1739421348062,0.7977312,2729.2,2728.8,3.93558]
[1739421348382,0.0075,2729.1,2728.9,0.27]
[1739421348683,0.5575,2729.0,2728.9,0.27]
[1739421348867,1.62925307,2729.0,2728.9,0.27]
[1739421350180,0.5575,2729.0,2728.9,3.93448]
[1739421350897,0.55,2729.0,2728.9,3.93448]
[1739421352103,0.0075,2728.9,2728.6,3.66483]
[1739421352270,0.0075,2728.9,2728.7,3.93463]
[1739421352892,0.0075,2728.9,2728.7,0.27]
[1739421353098,0.0075,2728.9,2728.8,3.66461]
[1739421353707,0.63337427,2728.9,2728.8,3.66461]
[1739421354084,0.62587427,2728.9,2728.8,3.66461]
[1739421354967,0.55,2728.8,2728.7,3.93474]
[1739421355173,0.62581517,2728.8,2728.7,3.93474]
[1739421355975,0.62581517,2728.8,2728.7,3.93574]
[1739421356311,0.62581517,2728.8,2728.6,3.66487]
[1739421356510,0.015,2728.7,2728.2,3.66931]
[1739421356709,0.55,2728.6,2728.3,3.93528]
[1739421356911,0.62569372,2728.6,2728.3,3.93528]
[1739421357299,0.62569372,2728.6,2728.4,3.66508]
[1739421357691,0.62569372,2728.6,2728.5,3.66501]
[1739421357894,0.62569372,2728.6,2728.3,7.60049]
[1739421358315,0.62569372,2728.6,2728.4,3.66503]
[1739421358512,0.62569372,2728.6,2728.5,3.66501]
[1739421358919,0.07569372,2728.6,2728.5,3.66501]
[1739421360909,2.4233,2729.3,2729.0,3.66433]
[1739421361087,2.64188665,2729.3,2729.0,3.66433]
[1739421361293,0.55,2729.1,2728.8,7.32905]
[1739421361487,0.55,2729.1,2728.9,3.66447]
[1739421361729,0.55,2729.2,2728.9,3.66447]
[1739421361928,0.55,2729.2,2728.9,3.66439]
[1739421362231,0.86993866,2729.2,2729.0,3.66428]
[1739421362739,1.0283,2729.5,2728.6,1.03]
[1739421362894,1.35,2729.6,2729.5,3.66367]
[1739421363100,1.35,2729.6,2729.5,3.93367]
[1739421363696,1.35,2730.0,2729.7,3.66328]
[1739421363957,1.35,2730.1,2729.9,3.66305]
[1739421364439,1.7341197,2730.1,2730.0,3.663]
[1739421364731,1.35,2730.1,2730.0,3.663]
[1739421365093,1.35,2730.1,2729.8,3.66325]
[1739421365494,0.55,2730.0,2729.9,3.66313]
[1739421366140,0.55,2730.0,2729.7,7.32661]
[1739421366355,0.55,2730.0,2729.9,3.66313]
[1739421366552,1.3575,2730.6,2730.3,3.66259]
[1739421366703,0.81975769,2730.5,2730.4,0.27]
[1739421366901,1.35,2730.6,2730.4,0.27]
[1739421367206,3.66233,2730.5,2730.4,0.27]
[1739421367406,0.55,2730.3,2730.2,0.27]
[1739421367993,0.0075,2730.0,2729.3,0.994]
[1739421368197,0.55,2729.9,2729.6,3.66343]
[1739421368532,1.27143195,2729.9,2729.6,3.66343]
[1739421368703,0.55,2729.7,2729.6,3.66343]
[1739421369094,0.62172967,2729.7,2729.5,3.66367]
[1739421369295,0.62172967,2729.7,2729.4,0.27]
[1739421369503,0.62172967,2729.7,2729.4,3.93369]
[1739421369737,0.55,2729.5,2729.1,3.66416]
[1739421369936,0.0075,2729.4,2729.2,0.27]
[1739421370140,1.41369095,2729.3,2729.2,0.27]
[1739421370439,1.48511679,2729.3,2729.2,0.27]
[1739421375430,2.83511679,2729.3,2729.2,0.27]
[1739421377815,6.49905679,2729.3,2729.2,0.27]
[1739421378739,2.83511679,2729.3,2729.2,0.27]
[1739421379234,0.0075,2729.2,2728.7,0.9769]
[1739421379447,0.5575,2728.8,2728.4,1.0612]
[1739421379607,0.5575,2728.8,2728.7,0.27]
[1739421380007,1.578,2728.8,2728.7,0.27]
[1739421380308,5.910107,2728.8,2728.7,0.27]
[1739421380647,0.0075,2728.4,2728.2,0.004]
[1739421380950,1.578,2728.3,2728.2,0.274]
[1739421381155,1.578,2728.3,2728.2,0.004]
[1739421382749,6.57491895,2728.3,2728.2,0.004]
[1739421383623,6.64249925,2728.3,2728.2,0.004]
[1739421384350,4.32721925,2728.3,2728.2,0.004]
[1739421384645,7.99249925,2728.3,2728.2,0.004]
[1739421385548,1.4175803,2728.3,2728.2,3.66942]
[1739421386112,1.35,2728.3,2728.2,3.66942]
[1739421386437,1.35,2728.3,2728.2,4.74002]
[1739421387071,0.981,2729.1,2728.4,3.66514]
[1739421387268,0.55,2728.9,2728.4,3.66514]
[1739421387468,0.55,2728.7,2728.4,3.66507]
[1739421387647,0.05569781,2728.6,2728.4,7.33013]
[1739421388015,0.05569781,2728.6,2728.4,3.66506]
[1739421389345,0.0075,2728.4,2728.3,0.27]
[1739421389548,0.0075,2728.4,2728.2,3.66933]
[1739421389549,0.0075,2728.4,2728.2,7.33466]
[1739421389751,0.05575393,2728.4,2728.3,3.93528]
[1739421390152,0.565,2728.7,2728.4,3.6651]
[1739421390352,0.72982195,2728.6,2728.5,3.66501]
[1739421390550,0.72982195,2728.6,2728.4,3.6651]
[1739421390789,0.55,2728.5,2728.4,3.6651]
[1739421391019,2.4001,2728.8,2728.6,3.66481]
[1739421391301,0.5575,2728.7,2728.5,3.66499]
[1739421391484,1.04988324,2728.7,2728.4,3.6651]
[1739421392570,1.04988324,2728.7,2728.5,3.665]
[1739421392878,0.55,2728.7,2728.5,3.665]
[1739421393240,0.5575,2728.8,2728.3,7.60042]
[1739421393492,0.5575,2728.8,2728.3,3.93519]
[1739421393779,0.55,2728.8,2728.6,3.66477]
[1739421394081,0.55,2728.8,2728.7,3.66474]
[1739421394799,1.35,2729.2,2728.5,1.0525]
[1739421394948,1.35,2729.2,2729.1,3.66421]
[1739421395174,0.015,2729.4,2729.1,3.66421]
[1739421395783,0.565,2729.4,2729.1,7.32842]
[1739421395954,0.0075,2729.4,2729.3,3.66394]
[1739421396164,0.4954097,2729.4,2729.1,7.32821]
[1739421396362,1.0454097,2729.4,2729.1,3.6641]
[1739421396679,0.4879097,2729.4,2729.1,3.6641]
[1739421396867,1.35,2729.5,2729.2,0.27]
[1739421397069,9.46209,2730.7,2729.4,3.66372]
[1739421397070,2.3804,2729.8,2729.4,3.66372]
[1739421397281,0.5575,2729.6,2729.4,3.66372]
[1739421397783,0.5575,2729.6,2729.5,3.66367]
[1739421397984,1.35,2729.7,2729.6,3.66354]
[1739421398506,0.55,2729.6,2729.5,1.0525]
[1739421398725,0.55,2729.6,2729.5,4.71617]
[1739421398862,5.53992807,2729.6,2729.5,0.27]
[1739421399187,5.54742807,2729.6,2729.5,0.27]
[1739421399570,1.88385807,2729.6,2729.5,0.27]
[1739421400768,0.60095807,2729.6,2729.5,0.27]
[1739421401695,0.60095807,2729.6,2729.5,3.93367]
[1739421402593,0.05095807,2729.6,2729.5,3.93367]
[1739421402967,1.35,2729.9,2729.7,3.66336]
[1739421403173,1.35,2729.9,2729.5,3.93359]
[1739421403498,0.60063831,2729.8,2729.5,3.93359]
[1739421403798,0.60063831,2729.8,2729.6,0.27]
[1739421404295,0.60063831,2729.8,2729.6,3.93351]
[1739421405370,0.60063831,2729.8,2729.6,7.59697]
[1739421405700,0.60063831,2729.8,2729.7,3.6634]
[1739421406674,0.05063831,2729.8,2729.7,3.6634]
[1739421406908,0.55,2730.0,2729.7,3.6634]
[1739421407610,1.35,2730.4,2730.0,3.6629]
[1739421407770,0.501244,2730.3,2730.0,3.66293]
[1739421407970,0.5575,2730.4,2729.9,4.63883]
[1739421408599,0.5575,2730.4,2729.9,4.63875]
[1739421408878,0.5575,2730.4,2730.0,3.66291]
[1739421409186,0.5575,2730.4,2730.0,3.663]
[1739421409384,0.5575,2730.4,2729.9,0.9757]
[1739421409601,1.64944195,2730.4,2730.0,3.66292]
[1739421410218,1.64944195,2730.4,2730.1,3.66282]
[1739421410441,0.55,2730.4,2730.2,3.66264]
[1739421411099,0.5575,2730.5,2730.1,3.66286]
[1739421411698,7.67078656,2730.5,2730.0,3.66299]
[1739421412329,7.67078656,2730.5,2730.0,7.32592]
[1739421413007,7.67078656,2730.5,2730.0,3.66293]
[1739421413315,8.67526522,2730.5,2730.0,3.66292]
[1739421413487,5.01289522,2730.5,2730.2,3.66273]
[1739421413712,0.04914996,2730.4,2730.2,3.66273]
[1739421413939,0.04914996,2730.4,2730.2,3.66265]
[1739421414532,0.04914996,2730.4,2730.2,7.32531]
[1739421414732,0.04914996,2730.4,2730.3,3.6626]
[1739421415047,0.04914996,2730.4,2730.3,4.6372]
[1739421415244,0.55,2730.7,2730.5,3.66228]
[1739421415405,0.55,2730.7,2730.6,0.269]
[1739421417135,5.58150166,2730.7,2730.6,0.269]
[1739421417373,5.59650166,2730.7,2730.6,0.269]
[1739421417926,6.60870166,2730.7,2730.6,0.269]
[1739421418405,2.94664166,2730.7,2730.6,0.269]
[1739421418606,1.91944166,2730.7,2730.6,0.269]
[1739421418810,0.55,2730.7,2730.6,0.269]
[1739421420021,4.21206,2730.7,2730.6,0.269]
[1739421420226,4.22706,2730.7,2730.6,0.269]
[1739421420529,5.27836,2730.7,2730.6,0.269]
[1739421420945,1.6163,2730.7,2730.6,0.269]
[1739421421152,2.62421666,2730.7,2730.6,0.269]
[1739421421313,6.28627666,2730.7,2730.6,0.269]
[1739421421956,2.61671666,2730.7,2730.6,0.269]
[1739421422140,0.55,2730.7,2730.6,0.269]
[1739421422353,1.35,2730.9,2730.6,3.93119]
[1739421422545,1.35,2730.9,2730.8,3.66193]
[1739421422741,1.0513,2731.3,2730.6,0.269]
[1739421423043,5.94211356,2731.4,2730.9,0.9742]
[1739421423215,0.0075,2731.0,2730.5,4.6364]
[1739421423415,0.5575,2731.0,2730.6,0.269]
[1739421424450,0.5575,2731.0,2730.7,3.66205]
[1739421424652,0.84184136,2731.3,2730.7,3.66205]
[1739421424816,8.15696136,2731.3,2730.7,3.66205]
[1739421425017,4.21898,2731.2,2730.6,3.93117]
[1739421425556,0.55,2731.0,2730.6,0.269]
[1739421425732,0.55,2731.0,2730.6,3.9311]
[1739421426357,0.55,2731.1,2730.7,3.66206]
[1739421426558,0.55,2731.0,2730.6,0.269]
[1739421426922,0.55,2731.0,2730.7,0.269]
[1739421427440,0.55,2730.7,2730.3,1.0491]
[1739421427642,4.21214,2730.7,2730.4,0.269]
[1739421427957,0.55,2730.4,2730.1,1.0491]
[1739421428265,0.55,2730.2,2730.1,0.269]
[1739421428458,5.18853,2730.2,2730.1,0.269]
[1739421428613,8.63944656,2730.2,2730.1,0.269]
[1739421428813,0.0075,2730.1,2730.0,0.269]
[1739421429016,3.66312,2730.0,2729.5,0.269]
[1739421429260,0.55,2729.6,2729.3,3.66391]
[1739421429432,0.55,2729.6,2729.5,0.269]
[1739421431058,0.5575,2729.8,2729.5,3.93267]
[1739421431266,0.5575,2729.8,2729.6,3.6635]
[1739421431414,0.5575,2729.8,2729.5,0.269]
[1739421432483,0.5575,2729.8,2728.9,3.66446]
[1739421432484,0.55,2729.4,2728.9,3.66446]
[1739421432661,0.55,2729.2,2729.0,0.269]
[1739421432948,0.9874,2729.0,2728.9,0.269]
[1739421433154,1.5449,2729.0,2728.9,0.269]